Cogmind - Beta 17.1 @@@ ROGUE MODE // 2026.08.27 @ 22:42:16 Player: eph7ra Result: Destroyed by S-27 Virus with Autogun Performance ------------- Evolutions (3) 1500 Regions Visited (9) 1800 Robots Destroyed (60) 300 Value Destroyed (1237) 1237 Prototype IDs (26) 520 Alien Tech Used (0) 0 Bonus (447) 447 TOTAL SCORE: 5804 Bonus ------- Follower Combat Kills 147 Aligned with FarCom 300 Cogmind --------- Core Integrity 0/700 Matter 300/300 Energy 100/100 System Corruption 2% Temperature Cool (27) Movement Core (1350) Ox26 Location -7/Lower Caves Parts ------- > --- POWER (1) -------- (None) > --- PROPULSION (3) --- (None) > --- UTILITY (6) ------ Huge Storage Unit Visual Processing Unit Advanced Terrain Scan Processor > --- WEAPON (3) ------- (None) > --- INVENTORY (25) --- Wheel Wheel Kinecellerator ECM Suite Gauss Cannon Peak State ------------ > --- POWER ------------ Light Ion Engine > --- PROPULSION ------- Medium Treads Medium Treads Medium Treads > --- UTILITY ---------- Improved Heat Sink Huge Storage Unit Visual Processing Unit Improved Terrain Scanner Advanced Terrain Scan Processor Trap Reconfigurator > --- WEAPON ----------- Arc Projector Beam Rifle > --- INVENTORY -------- Ion Engine Medium Treads Medium Treads Wheel Wheel Kinecellerator ECM Suite Heavy EM Pulse Gun Heavy EM Pulse Gun Katana [Rating: 43] Favorites ----------- Power Ion Engine Engine Ion Engine Propulsion Light Treads Treads Light Treads Wheel Wheel Utility Huge Storage Unit Device Trap Reconfigurator Storage Huge Storage Unit Processor Visual Processing Unit Protection Light Armor Plating Weapon Small Laser Energy Gun Small Laser Energy Cannon Heavy Ion Cannon Ballistic Gun Heavy Assault Rifle Launcher Grenade Launcher Slashing Weapon Katana Build | -11 -10 -10 -9 -9 -9 -8 -8 -7 -7 ------- Run | Yrd Mat Min Mat Min Exi Min Mat Fac Low Slots Evolved 6 | . . . 2 . . . 2 2 . Power . | . . . . . . . . . . Propulsion 1 | . . . 1 . . . . . . Utility 4 | . . . 1 . . . 1 2 . Weapon 1 | . . . . . . . 1 . . Parts Attached 51 | 7 2 . 7 . 2 3 8 22 . Power 5 | 1 . . 1 . 1 . 1 1 . Engine 5 | 1 . . 1 . 1 . 1 1 . Core . | . . . . . . . . . . Reactor . | . . . . . . . . . . Propulsion 14 | 3 . . 2 . . 2 2 5 . Treads 13 | 2 . . 2 . . 2 2 5 . Leg . | . . . . . . . . . . Wheel 1 | 1 . . . . . . . . . Hover . | . . . . . . . . . . Flight . | . . . . . . . . . . Utility 16 | 1 1 . 2 . 1 . 2 9 . Device 9 | . . . 1 . 1 . 1 6 . Storage 2 | 1 1 . . . . . . . . Processor 3 | . . . . . . . . 3 . Hackware . | . . . . . . . . . . Protection 2 | . . . 1 . . . 1 . . Artifact . | . . . . . . . . . . Weapon 16 | 2 1 . 2 . . 1 3 7 . Energy Gun 9 | 2 . . 1 . . . 1 5 . Energy Cannon 1 | . . . . . . . . 1 . Ballistic Gun 4 | . . . 1 . . . 2 1 . Ballistic Cannon . | . . . . . . . . . . Launcher 1 | . 1 . . . . . . . . Special Weapon . | . . . . . . . . . . Impact Weapon . | . . . . . . . . . . Slashing Weapon 1 | . . . . . . 1 . . . Piercing Weapon . | . . . . . . . . . . Special Melee Weapon . | . . . . . . . . . . Unidentified Prototypes 4 | . . . 1 . 1 . 1 1 . Corrupted Parts 1 | . . . . . . . 1 . . System Corruption 1 | . . . . . . . 1 . . Parts Lost 36 | . 1 . 1 1 . 6 4 13 10 Power 4 | . . . . . . . 1 2 1 Propulsion 10 | . . . . . . 3 . 4 3 Utility 9 | . . . . 1 . 1 1 3 3 Weapon 13 | . 1 . 1 . . 2 2 4 3 Highest Loss Streak 10 | . 1 . 1 1 . 6 1 7 10 To Critical Strikes 1 | . . . . . . 1 . . . Average Backups 10 | 2 5 6 11 15 16 13 10 7 5 Power 2 | . 1 1 2 3 3 4 4 . . Propulsion 2 | 1 2 2 3 4 4 2 2 2 2 Utility 1 | . . 1 1 2 2 2 . 1 2 Weapon 3 | . 1 2 3 6 7 5 4 2 1 Tool/Special . | . . . . . . . . . . Unused Backups 4 | . . . . . 1 . . 2 1 Power 3 | . . . . . 1 . . 2 . Propulsion 1 | . . . . . . . . . 1 Utility . | . . . . . . . . . . Weapon . | . . . . . . . . . . Tool/Special . | . . . . . . . . . . Average Slot Usage (%) 89 | . 97 85 95 88 91 79 93 81 88 Engine 9 | . 14 14 11 11 11 11 8 6 4 Treads 26 | . 28 28 31 33 33 22 24 17 19 Device 11 | . . . 3 11 13 12 17 17 21 Storage 13 | . 26 28 18 11 11 11 9 7 7 Processor 3 | . . . . . . . . 15 15 Protection 2 | . . . 9 . . . 8 . . Energy Gun 13 | . 20 . 18 22 22 4 5 11 . Ballistic Gun 3 | . . . . . . 8 17 1 6 Launcher 1 | . 5 14 1 . . . . . . Slashing Weapon 1 | . . . . . . 8 2 1 5 Peak Build Rating 43 | 6 7 6 13 11 21 21 26 43 39 Average Rating 18 | 4 6 6 9 10 14 20 25 32 34 On Entrance 14 | . 6 6 6 11 10 21 21 21 39 Avg Prop Armor Cover (%) . | . . . . . . . . . . Naked Turns . | . . . . . . . . . . Heaviest Build 103 | 13 95 93 98 89 92 93 102 103 102 Greatest Support 84 | 40 40 40 60 60 60 60 60 84 84 Greatest Overweight (x) 4 | 1 2 2 2 1 1 2 2 4 1 Average Overweight (x) 1 | . 1 2 1 1 1 1 1 1 1 Largest Inventory Capacity 25 | 8 25 25 25 25 25 25 25 25 25 Average Capacity 24 | 7 24 25 25 25 25 25 25 25 25 Most Carried 17 | 4 6 6 16 16 17 17 12 10 5 Average Carried 10 | 2 5 6 11 15 16 13 10 7 5 Final Capacity 25 | 8 25 25 25 25 25 25 25 25 25 Final Carried 17 | 4 6 6 15 16 17 13 11 5 5 Class Distribution -------------------- 64% | Mutant 15% | Scavenger-Skirmisher 13% | Scavenger-Mutant 3% | Skirmisher Dominant Class ---------------- Mutant | -10/Materials Mutant | -10/Mines Mutant | -9/Materials Mutant | -9/Mines Mutant | -9/Exiles Scavenger-Mutant | -8/Mines Scavenger-Skirmisher | -8/Materials Scavenger-Skirmisher | -7/Factory Mutant | -7/Lower Caves Resources | -11 -10 -10 -9 -9 -9 -8 -8 -7 -7 ----------- Run | Yrd Mat Min Mat Min Exi Min Mat Fac Low Matter Collected 1015 | 256 44 . 183 . . 59 152 321 . Remotely . | . . . . . . . . . . Salvage Created 1527 | . 57 . 404 52 . 82 518 349 65 Parts 133 | . 13 . 32 7 . 12 40 26 3 Haulers Intercepted . | . . . . . . . . . . Recyclers Shooed . | . . . . . . . . . . Parts Field Recycled . | . . . . . . . . . . Retrieved Matter . | . . . . . . . . . . Parts Self-Destructed 3 | . . . . . . . . . 3 Prevented 3 | . . . . . . . . . 3 Parts Restored . | . . . . . . . . . . Kills | -11 -10 -10 -9 -9 -9 -8 -8 -7 -7 ------- Run | Yrd Mat Min Mat Min Exi Min Mat Fac Low Combat Hostiles Destroyed 45 | . 7 . 12 4 . 4 15 2 1 Melee 2 | . . . . . . . . 1 1 Guns 26 | . . . 6 4 . 4 11 1 . AOE 17 | . 7 . 6 . . . 4 . . Classes Destroyed 12 | . 3 . 3 . . 1 2 3 . Worker 6 | . . . . . . . 2 4 . Builder 4 | . . . . . . 1 1 2 . Tunneler 1 | . . . 1 . . . . . . Recycler 1 | . . . . . . . . 1 . Watcher 3 | . 1 . . . . . . 2 . Swarmer 26 | . 6 . 3 4 . 4 9 . . Grunt 5 | . 1 . 4 . . . . . . Brawler 1 | . . . . . . . 1 . . Duelist 2 | . . . 1 . . . 1 . . Sentry 9 | . . . 4 . . . 4 . 1 Hunter 1 | . . . . . . . . 1 . Programmer 1 | . . . . . . . . 1 . Best Kill Streak 6 | . 5 . 4 4 . 3 6 4 1 Combat Bots Only 5 | . 5 . 4 4 . 2 4 1 1 Max Kills in Single Turn 3 | . 2 . 2 2 . 1 3 1 1 Gunslinging 1 | . . . . 1 . . 1 . . Exploded 2 | . 2 . 2 . . . 2 . . Melee 1 | . . . . . . . . 1 1 Uniques/NPCs Destroyed . | . . . . . . . . . . Combat | -11 -10 -10 -9 -9 -9 -8 -8 -7 -7 -------- Run | Yrd Mat Min Mat Min Exi Min Mat Fac Low Hostile Shots Fired 475 | . 42 . 43 34 . 43 135 99 79 Missed 118 | . 17 . 11 8 . 8 42 21 11 Hits 357 | . 25 . 32 26 . 35 93 78 68 Melee 3 | . . . 1 . . . 2 . . Projectile 354 | . 25 . 31 26 . 35 91 78 68 AOE 2 | . . . . . . . . 2 . Critical Strikes 10 | . . . . . . 2 2 3 3 Part Disruptions 2 | . . . . . . . . 2 . Damage Taken 4773 | . 234 . 394 213 . 279 1002 1545 1106 Core 979 | . 18 . 23 36 . 51 145 364 342 Absorbed by Shields . | . . . . . . . . . . Core Remaining (%) 84 | 100 . 92 . . . 72 73 . . Volleys Fired 97 | . 6 . 22 8 . 19 23 19 . Largest 3 | . 2 . 2 2 . 2 3 2 . Hottest 111 | . 70 . 90 90 . 90 91 111 . Shots Fired 187 | . 7 . 43 16 . 34 56 31 . Gun 177 | . 1 . 39 16 . 34 56 31 . Cannon . | . . . . . . . . . . Launcher 10 | . 6 . 4 . . . . . . Special . | . . . . . . . . . . Kinetic 45 | . . . . . . 2 43 . . Thermal 101 | . . . 39 16 . 32 . 14 . Explosive 10 | . 6 . 4 . . . . . . Electromagnetic 31 | . 1 . . . . . 13 17 . Robot Hit Streak 16 | . 2 . 8 2 . 3 16 4 . Robot Miss Streak 7 | . 2 . 2 4 . 7 3 2 . Penetration Max . | . . . . . . . . . . Secondary Targets 8 | . . . 1 3 . 1 3 . . Max Gunslinging Chain 1 | . . . 1 1 . 1 1 . . Shots Hit Robots 113 | . 2 . 24 5 . 10 34 33 5 Core Hits 78 | . 8 . 17 4 . 5 25 16 3 Critical Kills . | . . . . . . . . . . Critical Parts Destroyed . | . . . . . . . . . . Critical Strikes 4 | . . . 1 . . . . 3 . Burn 4 | . . . 1 . . . . 3 . Melee Attacks 20 | . . . . . . . . 13 7 Impact . | . . . . . . . . . . Slashing 20 | . . . . . . . . 13 7 Piercing . | . . . . . . . . . . Sneak Attacks 9 | . . . . . . . . 9 . Combat Hostiles . | . . . . . . . . . . Follow-up Attacks . | . . . . . . . . . . Damage Inflicted 3078 | 6 350 . 623 83 . 162 724 969 161 Guns 1294 | . . . 271 83 . 162 529 249 . Cannons . | . . . . . . . . . . Explosions 867 | . 350 . 322 . . . 195 . . Melee 872 | . . . . . . . . 720 152 Ramming 45 | 6 . . 30 . . . . . 9 Kinetic 418 | . . . . . . 34 384 . . Thermal 804 | . . . 271 83 . 128 195 127 . Explosive 672 | . 350 . 322 . . . . . . Electromagnetic 267 | . . . . . . . 145 122 . Impact . | . . . . . . . . . . Slashing 872 | . . . . . . . . 720 152 Piercing . | . . . . . . . . . . Highest Corruption 4 | . . . 1 1 1 1 1 4 2 Average Corruption 1 | . . . 1 1 1 1 1 1 2 Corruption Purged 2 | . . . . . . . . 2 . Corruption Blocked . | . . . . . . . . . . Effects 40 | . . . 3 1 7 5 7 15 2 Message Errors 4 | . . . 1 . 1 . . 1 1 Matter Fused 12 | . . . 1 . 3 . 3 5 . Heat Flow Errors 7 | . . . 1 . . 3 . 2 1 Energy Discharges 4 | . . . . . 2 . . 2 . Parts Rejected 1 | . . . . . . . . 1 . Parts Fused 1 | . . . . . . . . 1 . Data Loss (minor) 5 | . . . . 1 . 1 1 2 . Data Loss (major) 1 | . . . . . 1 . . . . Misfires 2 | . . . . . . . 1 1 . Alerts 1 | . . . . . . . 1 . . Weapon Failures 2 | . . . . . . 1 1 . . Overload Shots . | . . . . . . . . . . Overflow Damage 121 | . 42 . . . . . . 79 . Projectiles . | . . . . . . . . . . Explosions 42 | . 42 . . . . . . . . Melee 79 | . . . . . . . . 79 . Knockbacks . | . . . . . . . . . . Impact . | . . . . . . . . . . Kinetic . | . . . . . . . . . . Secondary . | . . . . . . . . . . Self-Inflicted Damage 68 | . . . 17 . . . 51 . . Shots 4 | . . . 2 . . . 2 . . Rammed 6 | 1 . . 1 . . . . . 4 Targets Rammed 7 | 1 . . 2 . . . . . 4 Kicked . | . . . . . . . . . . Crushed 1 | . . . 1 . . . . . . Highest Temperature 457 | . 9 . 457 180 . 342 96 240 229 Average Temperature 105 | . 5 . 115 94 . 158 34 42 107 Received Heat Transfer 897 | . 42 . 111 . . . 126 303 315 Effects 1 | . . . 1 . . . . . . Damage (minor) 1 | . . . 1 . . . . . . Siege Activations . | . . . . . . . . . . Martial Activations . | . . . . . . . . . . Shielding Activations . | . . . . . . . . . . Robots Disrupted . | . . . . . . . . . . Combat Hostiles . | . . . . . . . . . . Robots Corrupted . | . . . . . . . . . . Combat Hostiles . | . . . . . . . . . . Parts Fried 1 | . . . . . . . 1 . . Impact Corruptions . | . . . . . . . . . . Robots Melted . | . . . . . . . . . . Combat Hostiles . | . . . . . . . . . . Parts Melted 5 | . . . . 1 . 1 . 3 . Heat Transferred 2143 | . . . 817 223 . 335 250 518 . Parts Sabotaged . | . . . . . . . . . . Parts Stolen . | . . . . . . . . . . Parts Stripped . | . . . . . . . . . . Power Chain Reactions 3 | . . . . . . . 3 . . Alert | -11 -10 -10 -9 -9 -9 -8 -8 -7 -7 ------- Run | Yrd Mat Min Mat Min Exi Min Mat Fac Low Maximum Alert Level 1 | . . . 1 . . . . . . Low Security (%) 99 | 100 100 100 95 100 . 100 100 100 . Level 1 . | . . . 4 . . . . . . Level 2 . | . . . . . . . . . . Level 3 . | . . . . . . . . . . Level 4 . | . . . . . . . . . . Level 5 . | . . . . . . . . . . High Security . | . . . . . . . . . . Max Security . | . . . . . . . . . . Peak Influence 220 | . 140 64 220 70 . 50 174 68 . Initial 68 | . . 39 . . . . . 68 . Average 41 | . 50 12 113 15 . 10 39 6 . Influence Increases 1587 | . 215 74 583 90 . 95 401 109 20 Destroy 0b10 Robot/C 1080 | . 140 60 360 80 . 80 300 40 20 Destroy 0b10 Robot/NC 80 | . 5 . 10 . . 5 15 45 . Destroy Leader 268 | . 32 10 102 10 . 10 80 24 . Allied During Kill 36 | . . 4 32 . . . . . . Successful Hack 23 | . 4 . 19 . . . . . . Disable Machine 30 | . . . 30 . . . . . . Destroy Structure 70 | . 34 . 30 . . . 6 . . Influence Decreases 1587 | . 114 175 583 90 . 95 249 251 30 Entered New Map 150 | . . 62 . . . . . 84 4 Time Decay 1204 | . 104 113 435 80 . 70 219 167 16 Lost Part 95 | . 10 . 10 10 . 25 30 . 10 Lost Ally 20 | . . . 20 . . . . . . Purge Threat 118 | . . . 118 . . . . . . Squads Dispatched 10 | . 1 . 2 . . . 4 3 . Investigation 1 | . . . 1 . . . . . . Extermination 3 | . . . . . . . . 3 . Reinforcement 2 | . 1 . 1 . . . . . . Assault . | . . . . . . . . . . Garrison 4 | . . . . . . . 4 . . Intercept . | . . . . . . . . . . Searches Triggered . | . . . . . . . . . . Construction Impeded . | . . . . . . . . . . Haulers Reinforced . | . . . . . . . . . . Active Scanning Responses . | . . . . . . . . . . Cargo Convoy Interrupts . | . . . . . . . . . . Stealth | -11 -10 -10 -9 -9 -9 -8 -8 -7 -7 --------- Run | Yrd Mat Min Mat Min Exi Min Mat Fac Low Distress Signals 3 | . 1 . . . . . 1 1 . Communications Jammed . | . . . . . . . . . . Distress Signals . | . . . . . . . . . . Times Spotted 80 | . 9 . 21 4 . 4 23 12 7 Peak Tracking Total 7 | . 7 . 5 4 . 4 6 5 7 Tactical Retreats . | . . . . . . . . . . Traps | -11 -10 -10 -9 -9 -9 -8 -8 -7 -7 ------- Run | Yrd Mat Min Mat Min Exi Min Mat Fac Low Traps Triggered 1 | . . . 1 . . . . . . Indirectly . | . . . . . . . . . . Trap Hack Attempts . | . . . . . . . . . . Triggered . | . . . . . . . . . . Disarmed . | . . . . . . . . . . Reprogrammed . | . . . . . . . . . . Reused . | . . . . . . . . . . Traps Reconfigurated 5 | . . . . . . . 5 . . Traps Extracted . | . . . . . . . . . . Installed . | . . . . . . . . . . Triggered . | . . . . . . . . . . Machines | -11 -10 -10 -9 -9 -9 -8 -8 -7 -7 ---------- Run | Yrd Mat Min Mat Min Exi Min Mat Fac Low Machines Disabled 2 | . . . 2 . . . . . . Max in Single Turn 2 | . . . 2 . . . . . . Machines Repaired . | . . . . . . . . . . Machines Dismantled . | . . . . . . . . . . Machines Sabotaged . | . . . . . . . . . . Overloaded Fab Kills . | . . . . . . . . . . Hacking | -11 -10 -10 -9 -9 -9 -8 -8 -7 -7 --------- Run | Yrd Mat Min Mat Min Exi Min Mat Fac Low Machines Accessed 6 | . 1 . 3 . 1 . 1 . . Terminals 5 | . 1 . 3 . . . 1 . . Fabricators . | . . . . . . . . . . Repair Stations . | . . . . . . . . . . Recycling Units . | . . . . . . . . . . Scanalyzers . | . . . . . . . . . . Garrison Access . | . . . . . . . . . . Total Hacks 15 | . 1 . 10 . 1 . 3 . . Successful 12 | . 1 . 8 . 1 . 2 . . Failed 3 | . . . 2 . . . 1 . . Catastrophic . | . . . . . . . . . . Database Lockouts . | . . . . . . . . . . Manual 6 | . . . 3 . 3 . . . . Terminals 14 | . 1 . 10 . . . 3 . . Fabricators . | . . . . . . . . . . Repair Stations . | . . . . . . . . . . Recycling Units . | . . . . . . . . . . Scanalyzers . | . . . . . . . . . . Garrison Access . | . . . . . . . . . . Terminal Hacks 11 | . 1 . 7 . 1 . 2 . . Alert Level 1 | . . . . . . . 1 . . Unreport Threat 1 | . . . 1 . . . . . . Locate Traps 1 | . 1 . . . . . . . . Surveillance Status 1 | . . . 1 . . . . . . Assault Status 1 | . . . 1 . . . . . . Hauler Manifests 1 | . . . 1 . . . . . . Zone Layout 4 | . . . 3 . . . 1 . . Proto ID Catalog 1 | . . . . . 1 . . . . Fabricator Hacks . | . . . . . . . . . . Repair Station Hacks . | . . . . . . . . . . Recycling Unit Hacks . | . . . . . . . . . . Scanalyzer . | . . . . . . . . . . Garrison Access Hacks . | . . . . . . . . . . Unauthorized Hacks 1 | . . . 1 . . . . . . Terminals 1 | . . . 1 . . . . . . Skim 1 | . . . 1 . . . . . . Fabricators . | . . . . . . . . . . Repair Stations . | . . . . . . . . . . Recycling Units . | . . . . . . . . . . Scanalyzers . | . . . . . . . . . . Garrison Access . | . . . . . . . . . . Data Cores Recovered . | . . . . . . . . . . Used . | . . . . . . . . . . Hacking Detections 4 | . 1 . 2 . . . 1 . . Full Trace Events 1 | . . . 1 . . . . . . Feedback Events . | . . . . . . . . . . Feedback Blocked . | . . . . . . . . . . Robot Schematics Acquired . | . . . . . . . . . . Robots Built . | . . . . . . . . . . Authchips . | . . . . . . . . . . Time . | . . . . . . . . . . Total Robot Build Rating . | . . . . . . . . . . Part Schematics Acquired . | . . . . . . . . . . Parts Built . | . . . . . . . . . . Authchips . | . . . . . . . . . . Time . | . . . . . . . . . . Total Part Build Rating . | . . . . . . . . . . Part Studies Acquired . | . . . . . . . . . . Parts Repaired . | . . . . . . . . . . Time . | . . . . . . . . . . Parts Recycled . | . . . . . . . . . . Recycled Matter . | . . . . . . . . . . Retrieved Matter . | . . . . . . . . . . Retrieved Components . | . . . . . . . . . . Parts Scanalyzed . | . . . . . . . . . . Part Schematics Acquired . | . . . . . . . . . . Parts Damaged . | . . . . . . . . . . Bothacking | -11 -10 -10 -9 -9 -9 -8 -8 -7 -7 ------------ Run | Yrd Mat Min Mat Min Exi Min Mat Fac Low Used RIF Installer . | . . . . . . . . . . Robots Hacked . | . . . . . . . . . . Non-combat . | . . . . . . . . . . Combat . | . . . . . . . . . . Robot Hacks Applied . | . . . . . . . . . . Relay Couplers Released . | . . . . . . . . . . Fabnet Peak Effective % . | . . . . . . . . . . Robots Rewired . | . . . . . . . . . . Allies Hacked . | . . . . . . . . . . Hacks Repelled . | . . . . . . . . . . Allies | -11 -10 -10 -9 -9 -9 -8 -8 -7 -7 -------- Run | Yrd Mat Min Mat Min Exi Min Mat Fac Low Total Allies 4 | . . 3 . . . . . . 1 Largest Group 3 | . . 3 2 . . . . . 1 Highest-Rated Group 165 | . . 40 24 . . . . . 165 Highest-Rated Ally 165 | . . 16 16 . . . . . 165 Total Orders 3 | . . 3 . . . . . . . ROAM 1 | . . 1 . . . . . . . FOLLOW 2 | . . 2 . . . . . . . Ally Attacks 39 | . . 4 35 . . . . . . Total Damage 404 | . . 45 359 . . . . . . Kills 10 | . . 3 7 . . . . . . Allies Corrupted . | . . . . . . . . . . Allies Melted . | . . . . . . . . . . Intel | -11 -10 -10 -9 -9 -9 -8 -8 -7 -7 ------- Run | Yrd Mat Min Mat Min Exi Min Mat Fac Low Active Infowar (turns) 2711 | . . . 428 373 1074 40 290 506 . Optics 44 | . . . . . . . . 44 . Terrain 444 | . . . . . . . . 444 . Traps 18 | . . . . . . . . 18 . Seismic 1915 | . . . 428 373 1074 40 . . . ECM 290 | . . . . . . . 290 . . Robot Analysis Total . | . . . . . . . . . . Derelict Logs Recovered 1 | . . . . . . . . . 1 Drone Launches . | . . . . . . . . . . Drone Recoveries . | . . . . . . . . . . Exploration | -11 -10 -10 -9 -9 -9 -8 -8 -7 -7 ------------- Run | Yrd Mat Min Mat Min Exi Min Mat Fac Low Turns Passed 6705 | 77 489 535 1225 373 1074 307 959 1535 131 Spaces Moved 2203 | 42 156 168 443 146 445 79 201 483 40 Core 7 | 7 . . . . . . . . . Treads 2196 | 35 156 168 443 146 445 79 201 483 40 Legs . | . . . . . . . . . . Wheels . | . . . . . . . . . . Hover . | . . . . . . . . . . Flight . | . . . . . . . . . . Fastest Speed 50 | 50 160 320 240 240 240 240 240 240 240 Average Speed 267 | 148 303 320 249 240 240 318 277 288 240 Slowest Speed 480 | 160 320 320 320 240 240 320 320 480 240 Overloaded Moves . | . . . . . . . . . . Propulsion Burnouts . | . . . . . . . . . . Robots Hopped . | . . . . . . . . . . Potential Cave-ins . | . . . . . . . . . . Cave-ins Triggered . | . . . . . . . . . . Exploration Rate (%) 27 | 5 30 53 45 35 45 12 23 16 7 Regions Visited 9 Branch Regions 5 Pre-discovered Areas 2 | . . 1 . . . . . . 1 Known Exits Taken . | . . . . . . . . . . Unknown Exits Taken 9 | 1 1 1 1 1 1 1 1 1 . Scrap Searched 1 | . . . . 1 . . . . . Spaces Dug . | . . . . . . . . . . Terrain Destroyed 80 | . 48 . 27 . . . 5 . . Melee . | . . . . . . . . . . Projectile . | . . . . . . . . . . AOE 80 | . 48 . 27 . . . 5 . . Terrain Rammed . | . . . . . . . . . . Walls Destroyed . | . . . . . . . . . . Machines Disabled . | . . . . . . . . . . Actions | -11 -10 -10 -9 -9 -9 -8 -8 -7 -7 --------- Run | Yrd Mat Min Mat Min Exi Min Mat Fac Low Total 2792 | 53 165 167 515 154 451 101 562 573 51 Wait 374 | . . . 24 . . . 330 20 . Move 2194 | 41 155 167 442 145 444 78 200 482 40 Hop . | . . . . . . . . . . Pick Up 22 | 3 2 . 10 1 2 . . 4 . Fast Attach 33 | 7 1 . 6 . 1 . 3 15 . Attach 20 | . . . 2 . . 4 3 11 . Detach 5 | 1 . . 1 . . . . 3 . Swap 6 | . 1 . 2 . 1 . 2 . . Drop 12 | . . . 4 . 1 . 1 6 . Fire 97 | . 6 . 22 8 . 19 23 19 . Melee 20 | . . . . . . . . 13 7 Ram 1 | . . . . . . . . . 1 Kick . | . . . . . . . . . . Crush 6 | 1 . . 2 . . . . . 3 Escape Stasis . | . . . . . . . . . . Rewire 2 | . . . . . 2 . . . . Trap . | . . . . . . . . . . Miscellaneous . | . . . . . . . . . . Route ------- -11/Scrapyard -10/Materials -10/Mines -9/Materials (discovered 2 exits: [*Min x2]) -9/Mines -9/Exiles -8/Mines -8/Materials -7/Factory (discovered 2 exits: [*Fac] / [*Low]) -7/Lower Caves History --------- Turn | Location | Event 16 | -11/Scrapyard | Discovered new exit (range 13) 78 | -11/Scrapyard | Entered Materials 317 | -10/Materials | Build established: Mutant 435 | -10/Materials | Discovered new exit (range 5) 567 | -10/Materials | Entered Mines 577 | -10/Mines | Assisted by bots powering up and referring to "LRC-V3" 1020 | -10/Mines | Learned location of Storage (-7) 1022 | -10/Mines | Discovered new exit (range 8) 1102 | -10/Mines | Entered Materials 1102 | -9/Materials | Accompanied by 2 allies 1102 | -9/Materials | Evolved 2 slots: Propulsion x1, Utility x1 1346 | -9/Materials | Discovered new exit (range 6) 2252 | -9/Materials | Discovered new exit (range 15) 2327 | -9/Materials | Entered Mines 2688 | -9/Mines | Deemed a non-threat by the Exiles lab entrance 2688 | -9/Mines | Discovered new exit (range 5) 2700 | -9/Mines | Entered Exiles 2776 | -9/Exiles | Discovered new exit (range 14) 2832 | -9/Exiles | Met 8R-AWN 2860 | -9/Exiles | Met EX-HEX 2958 | -9/Exiles | Met EX-BIN 3426 | -9/Exiles | Aligned with FarCom system 3429 | -9/Exiles | Given EX-Vault access code 3486 | -9/Exiles | Opened EX-Vault 3496 | -9/Exiles | Found Prototype Device 3496 | -9/Exiles | Identified Trap Reconfigurator 3577 | -9/Exiles | Warned to stay clear of 0b10 Research branches 3774 | -9/Exiles | Left Exiles lab with Trap Reconfigurator 3774 | -9/Exiles | Entered Mines 3859 | -8/Mines | Lost 6 parts (3n1u2w) 4043 | -8/Mines | Discovered new exit (range 13) 4081 | -8/Mines | Entered Materials 4081 | -8/Materials | Evolved 2 slots: Utility x1, Weapon x1 4123 | -8/Materials | Build established: Scavenger-Mutant 4367 | -8/Materials | Garrison activated, responded to threat 4597 | -8/Materials | Build established: Scavenger-Skirmisher 4904 | -8/Materials | Garrison activated, responded to threat 5030 | -8/Materials | Discovered new exit (range 4) 5040 | -8/Materials | Entered Factory 5040 | -7/Factory | Evolved 2 slots: Utility x2 5442 | -7/Factory | Lost 4 parts (1p2n1w) 6194 | -7/Factory | Lost 7 parts (1p1n2u3w) 6296 | -7/Factory | Core integrity fell below 50% 6484 | -7/Factory | Discovered new exit (range 15) 6533 | -7/Factory | Discovered new exit (range 16) 6575 | -7/Factory | Entered Lower Caves 6596 | -7/Lower Caves | Encountered a Warlord checkpoint 6658 | -7/Lower Caves | Attracted the attention of an 0b10 base 6703 | -7/Lower Caves | Core integrity fell below 20% 6706 | -7/Lower Caves | Destroyed by S-27 Virus with Autogun Last Messages --------------- 06679_ Katana destroyed. 06680_ Assault Rifle destroyed. 06681_ Slammed into G-47 Trooper. 06684_ Adv. Heat Sink fries itself beyond repair. 06685_ Neutrino Core fries itself beyond repair. 06686_ Critical hit (Burn: +37). 06687_ Imp. Treads fries itself beyond repair. 06688_ Critical hit (Burn: +37). 06688_ Slammed into G-47 Trooper. 06688_ Med. Treads destroyed. 06690_ Slammed into G-47 Trooper. 06694_ Med. Treads destroyed. 06694_ Slammed into G-47 Trooper. 06694_ Imp. Heat Sink destroyed. 06696_ Trap Scanner destroyed. 06696_ Hvy. Ion Cannon destroyed. 06698_ Critical hit (Burn: +37). A strange signal echoes through the caves. 06705_ Microactuators destroyed. Map ----- +----------------------------------------------------+ | ?????????????????????????????????????????????????? | | ?????????????????????????????????????????????????? | | ?????????????????????????????????????????????????? | | ?????????????????????????????????????????????????? | | ?????????????????????????????????????????????????? | | ?????????????????????????????????????????????????? | | ?????????????????????????????????????????????????? | | ?????????????????????????????????????????????????? | | ?????????????????????????????????????????????????? | | ?????????????????????????????????????????????????? | | ?????????????????????????????????????????????????? | | ????????????????????????????????#?#??????????????? | | ???????????????????????????????? ? #?????????????? | | ???????????????????????????????? ? ?????????????? | | ???????????????????????????????? ? ?????????????? | | ???????????????????????????????? ? #????????????? | | ???????????????????????????????# ## #????????????? | | ?????????????????????????#####?# ## #????????????? | | ????????????????????????? #?# ## #????????????? | | ?????????????????????????? #?# ## #????????????? | | ????????????????###???????# #?# ## #????????????? | | ????????????????#" ?????# #?# ## #######??????? | | ????????????????#" ????# #?# ## #??????? | | ????????????????#" """# %### ## #??????? | | ????????????????#" %%s% #??????? | | ????????????????#" g@# % #??????? | | ????????????????+ %# #### = #??????? | | ????????????????# sg# #??## #??????? | | ????????????????#""T" g + #???# #??????? | | ????????????????#"""" """# #???# ##??????? | | ?????????????????#####+#### #???# ### #???????? | | ????????????????????? ???? #???# #?? #???????? | | ???????????????????? ##### ### #???????? | | ??????????????????? ????# #???????? | | ??????????????????? ???# ####### #???????? | | ?????????????????? ?????? ##??????## #???????? | | ???????????????????????? #?????????## #???????? | | ???????????????????????? ???????????# ###???????? | | ????????????????????????????????????# ##??????? | | ????????????????????????????????????# #??????? | | ????????????????????????????????????# #??????? | | ????????????????????????????????????# #??????? | | ????????????????????????????????????# #??????? | | ????????????????????????????????????# ##??????? | | ????????????????????????????????????# ##???????? | | ???????????????????????????????????? ##????????? | | ??????????????????????????????????? #?????????? | | ?????????????????????????????????? ##?????????? | | ??????????????????????????????????####???????????? | | ?????????????????????????????????????????????????? | +----------------------------------------------------+ Best States ------------- Heat Dissipation 48 Energy Generation 12 Energy Capacity 265 Matter Stores 300 Matter Capacity 300 Sight Range 18 Terrain Scan Range 16 Terrain Scan Density 310 ECM Strength 1 Armor Coverage 150 Melee Speed Boost 20 Evasion (%) 40 Recoil Reduction 3 Kinecelleration 30 Item Schematics ----------------- None Robot Schematics ------------------ None Fabricated ------------ Nothing Repaired ---------- Nothing Studied --------- None Alien Tech Used ----------------- None Achievements -------------- Deductive Reasoning Challenges ------------ None Game ------ Seed AssemblyBottomlessProcessor Manual? 0 Play Time 00:32:29 Cumulative 27.9 hours Start 2026.08.27 @ 22:02:58 End 2026.08.27 @ 22:42:16 Sessions 1 Manual Loads 0 Difficulty Rogue Special Mode None Game No. 42 Rogue 37 Adventurer 1 Explorer 4 Win Type - Total 0 Types 0/0/0/0/0/0/0/0/0/0 Lore% 10 Gallery% 20 Achievement% 18 Wizard Run 0 Options --------- Layout 1 ASCII 0 Keyboard 0 Movement Arrows Keybinds 0 Fullscreen 1 Font 24/Smallcaps Map View 50x35 Zoom Use 0% Tactical HUD 1 Map Filters NONE Filters NONE Steam 1 RUN: 9db90010-b3d3-4ac4-a20c-d85b3c13a0c7